bitfinex/quotes_BTCUSD_20250624
["timestamp","ask_amount","ask_price","bid_price","bid_amount"]
[1750734924070,0.14286682,105060.0,105050.0,0.36106321]
[1750734924864,0.14286682,105060.0,105050.0,0.35806321]
[1750734925932,0.14286682,105060.0,105050.0,0.36206321]
[1750734926148,0.09974682,105060.0,105050.0,0.36206321]
[1750734926362,0.09974682,105060.0,105050.0,0.35906321]
[1750734927293,0.09974682,105060.0,105050.0,0.80415113]
[1750734927492,0.09974682,105060.0,105050.0,1.14415113]
[1750734927696,0.20368,105090.0,105080.0,0.21887974]
[1750734927906,0.04312,105090.0,105080.0,0.3453816]
[1750734928293,0.23632085,105100.0,105090.0,0.19982871]
[1750734928294,0.07576085,105100.0,105090.0,0.19982871]
[1750734928512,0.27948085,105100.0,105090.0,0.19982871]
[1750734928726,0.27948085,105100.0,105090.0,0.00951565]
[1750734928941,0.27961955,105100.0,105090.0,0.00951565]
[1750734929148,0.29511955,105100.0,105080.0,0.32978097]
[1750734929353,0.29511955,105100.0,105080.0,0.33078097]
[1750734929558,0.55158747,105100.0,105080.0,0.21036177]
[1750734929759,0.20372,105090.0,105080.0,0.21036195]
[1750734930320,0.20372,105090.0,105080.0,0.001]
[1750734930518,0.20372,105090.0,105080.0,0.02003301]
[1750734930727,0.20372,105090.0,105080.0,0.00951655]
[1750734930952,0.64880792,105090.0,105070.0,0.21565143]
[1750734931154,0.67950792,105090.0,105060.0,0.2249736]
[1750734931364,0.67950792,105090.0,105060.0,0.34549391]
[1750734931535,0.23442,105090.0,105070.0,0.20938185]
[1750734931769,0.67950792,105090.0,105070.0,0.19986475]
[1750734932166,0.67950792,105090.0,105060.0,0.33597582]
[1750734932425,0.67950792,105090.0,105060.0,0.34549346]
[1750734932755,0.016,105080.0,105060.0,0.33951182]
[1750734932957,0.16076,105070.0,105060.0,0.34902973]
[1750734933159,0.16076,105070.0,105060.0,0.32047636]
[1750734933369,0.16076,105070.0,105060.0,0.21889259]
[1750734933575,0.16076,105070.0,105060.0,0.23549259]
[1750734933824,0.16076,105070.0,105060.0,0.25452814]
[1750734934597,0.16076,105070.0,105060.0,0.24501041]
[1750734934999,0.16076,105070.0,105060.0,0.23749259]
[1750734935198,0.16076,105070.0,105060.0,0.24701032]
[1750734935384,0.16076,105070.0,105060.0,0.24901032]
[1750734936969,0.81688792,105090.0,105070.0,0.20938374]
[1750734937175,0.81688792,105090.0,105070.0,0.21890075]
[1750734937176,0.20464,105080.0,105070.0,0.21890075]
[1750734937611,0.20464,105080.0,105070.0,0.22841767]
[1750734937833,0.20464,105080.0,105070.0,0.2539345]
[1750734938032,0.37074085,105090.0,105080.0,0.19984772]
[1750734938243,0.57638085,105090.0,105080.0,0.20936418]
[1750734938676,0.0164,105080.0,105060.0,0.31165791]
[1750734938873,0.1612,105070.0,105060.0,0.21889178]
[1750734939280,0.1612,105070.0,105060.0,0.21889187]
[1750734939482,0.1612,105070.0,105060.0,0.21889251]
[1750734939896,0.1612,105070.0,105060.0,0.22841024]
[1750734940129,0.1612,105070.0,105060.0,0.21889251]
[1750734940542,0.1612,105070.0,105060.0,0.22841024]
[1750734940758,0.01454085,105060.0,105040.0,0.0163]
[1750734940974,0.20468,105050.0,105040.0,0.19992188]
[1750734941206,0.20468,105050.0,105040.0,0.20944179]
[1750734941434,0.20468,105050.0,105040.0,0.19992188]
[1750734941645,0.20468,105050.0,105040.0,0.20944188]
[1750734941857,0.20468,105050.0,105040.0,0.22848161]
[1750734942072,0.20468,105050.0,105040.0,0.01950359]
[1750734942280,0.20468,105050.0,105040.0,0.21942724]
[1750734942503,0.20468,105050.0,105040.0,0.00246332]
[1750734942712,0.66616792,105050.0,105040.0,0.00246332]
[1750734943472,0.68070877,105050.0,105040.0,0.00246332]
[1750734943883,0.69670877,105050.0,105040.0,0.00246332]
[1750734944087,1.03670877,105050.0,105040.0,0.00246332]
[1750734944454,6.18221063,105050.0,105040.0,0.00246332]
[1750734944660,6.37259616,105050.0,105040.0,0.00246332]
[1750734944885,6.81768408,105050.0,105040.0,0.00246332]
[1750734945100,6.40484153,105050.0,105040.0,0.00246332]
[1750734945322,6.38211462,105050.0,105040.0,0.00246332]
[1750734945526,5.92750824,105050.0,105040.0,0.00246332]
[1750734945736,6.37259616,105050.0,105040.0,0.00246332]
[1750734945944,5.97753063,105050.0,105040.0,0.00246332]
[1750734946150,6.37267616,105050.0,105040.0,0.00246332]
[1750734946368,6.84247501,105050.0,105040.0,0.00246332]
[1750734946582,6.83880118,105050.0,105040.0,0.00046332]
[1750734946784,6.89005432,105050.0,105040.0,0.00046332]
[1750734947005,6.89005423,105050.0,105040.0,0.00046332]
[1750734947223,6.00222677,105050.0,105040.0,0.00046332]
[1750734947426,6.07298877,105050.0,105040.0,0.00046332]
[1750734948242,6.07298877,105050.0,105040.0,0.00146332]
[1750734948452,6.4528959,105050.0,105040.0,0.00046332]
[1750734948650,6.62857855,105050.0,105040.0,0.00046332]
[1750734949029,6.63157855,105050.0,105040.0,0.00046332]
[1750734949300,6.62957855,105050.0,105040.0,0.00046332]
[1750734949491,6.63357855,105050.0,105040.0,0.00046332]
[1750734950040,6.63909701,105050.0,105040.0,0.00046332]
[1750734950407,6.6390971,105050.0,105040.0,0.00046332]
[1750734950535,6.6400971,105050.0,105040.0,0.00046332]
[1750734950744,6.64961583,105050.0,105040.0,0.00046332]
[1750734950947,6.64961574,105050.0,105040.0,0.00046332]
[1750734951142,6.63057855,105050.0,105040.0,0.00046332]
[1750734951850,6.6400971,105050.0,105040.0,0.00046332]
[1750734951980,6.64961592,105050.0,105040.0,0.00046332]
[1750734952194,6.84952045,105050.0,105040.0,0.00046332]
[1750734952389,6.6686541,105050.0,105040.0,0.00046332]
[1750734952626,6.63993728,105050.0,105040.0,0.00046332]
[1750734952849,6.65897474,105050.0,105040.0,0.00046332]
[1750734953867,6.45417465,105050.0,105040.0,0.00046332]
[1750734954079,6.66849383,105050.0,105040.0,0.00046332]
[1750734954481,6.8493609,105050.0,105040.0,0.00046332]
[1750734955113,6.63025855,105050.0,105040.0,0.00046332]
[1750734955274,6.4351371,105050.0,105040.0,0.00046332]
[1750734955473,6.42561855,105050.0,105040.0,0.00046332]
[1750734955827,5.95098978,105050.0,105040.0,0.00046332]
[1750734956020,6.15558978,105050.0,105040.0,0.00046332]
[1750734956240,5.65434978,105050.0,105040.0,0.00046332]
[1750734956440,0.99244792,105050.0,105040.0,0.00046332]
[1750734956645,0.44908792,105050.0,105040.0,0.01576332]
[1750734956855,0.66834877,105050.0,105040.0,0.01576332]
[1750734957049,0.66730877,105050.0,105040.0,0.01576332]
[1750734957598,0.46262877,105050.0,105040.0,0.01576332]
[1750734958015,0.66722877,105050.0,105040.0,0.01576332]
[1750734958689,0.45962877,105050.0,105040.0,0.00046332]
[1750734958903,0.66422877,105050.0,105040.0,0.00046332]
[1750734959091,0.66622877,105050.0,105040.0,0.00046332]
[1750734960166,0.01654085,105050.0,105040.0,0.00046332]
[1750734960393,0.66634877,105050.0,105040.0,0.00046332]
[1750734961734,0.46162877,105050.0,105040.0,0.00046332]
[1750734961932,0.66662877,105050.0,105040.0,0.01696332]
[1750734962977,0.66662877,105050.0,105040.0,0.00046332]
[1750734964606,0.68302877,105050.0,105040.0,0.00046332]
[1750734965214,0.77853063,105050.0,105040.0,0.00046332]
[1750734965423,0.79423063,105050.0,105040.0,0.00046332]
[1750734965766,0.77853063,105050.0,105040.0,0.00046332]
[1750734965973,0.66662877,105050.0,105040.0,0.00046332]
[1750734966563,0.69525277,105050.0,105040.0,0.00046332]
[1750734967585,5.74525277,105050.0,105040.0,0.00046332]
[1750734969382,5.76185277,105050.0,105040.0,0.00046332]
[1750734970381,5.55685277,105050.0,105040.0,0.00046332]
[1750734970588,0.002,105050.0,105040.0,0.12676518]
[1750734970814,0.002,105050.0,105040.0,0.21194621]
[1750734971029,0.002,105050.0,105040.0,0.20242603]
[1750734971736,0.00083816,105050.0,105040.0,0.39282968]
[1750734971987,0.01454085,105070.0,105060.0,0.0158]
[1750734972208,0.20472,105070.0,105060.0,0.0158]
[1750734972454,0.66434877,105070.0,105060.0,0.0148]
[1750734972664,0.66434877,105070.0,105060.0,0.0138]
[1750734973285,0.66534877,105070.0,105050.0,0.02531927]
[1750734973695,0.44508792,105060.0,105040.0,0.33272864]
[1750734973902,0.60620792,105050.0,105040.0,0.01826332]
[1750734974108,0.60628792,105050.0,105040.0,0.00246332]
[1750734974316,0.60628792,105050.0,105040.0,0.0119835]
[1750734974554,0.60628792,105050.0,105040.0,0.00246332]
[1750734974754,0.60628792,105050.0,105040.0,0.0119835]
[1750734974962,0.60628792,105050.0,105040.0,0.00246332]
[1750734975164,0.60628792,105050.0,105040.0,0.01950359]
[1750734975370,0.60628792,105050.0,105040.0,0.00046332]
[1750734975551,5.67082877,105050.0,105040.0,0.00046332]
[1750734975790,0.17574085,105050.0,105040.0,0.00046332]
[1750734975994,0.62082877,105050.0,105040.0,0.02588341]
[1750734976202,0.62082877,105050.0,105040.0,0.0258835]
[1750734976407,0.62082877,105050.0,105040.0,0.03840359]
[1750734976612,0.62082877,105050.0,105040.0,0.02336332]
[1750734977228,5.71434877,105050.0,105040.0,0.00746332]
[1750734977443,5.26926085,105050.0,105040.0,0.00746332]
[1750734977657,0.66434877,105050.0,105040.0,0.00746332]
[1750734978084,0.66434877,105050.0,105040.0,0.02356332]
[1750734978493,0.66434877,105050.0,105040.0,0.02056332]
[1750734978712,0.66434877,105050.0,105040.0,0.01756332]
[1750734978922,0.64980792,105050.0,105040.0,0.01756332]
[1750734979132,0.64980792,105050.0,105040.0,0.01956332]
[1750734980395,0.20472,105050.0,105040.0,0.01956332]
[1750734980599,0.20472,105050.0,105040.0,0.03596332]
[1750734980804,0.20472,105050.0,105040.0,0.23588715]
[1750734981014,0.04364,105050.0,105040.0,0.35994846]
[1750734981228,0.04364,105050.0,105040.0,0.43560931]
[1750734981449,0.04364,105050.0,105040.0,0.4356094]
[1750734981657,0.04364,105050.0,105040.0,0.44512894]
[1750734982086,0.04364,105050.0,105040.0,0.44412894]
[1750734982293,0.04364,105050.0,105040.0,0.44212894]
[1750734982507,0.04364,105050.0,105040.0,0.44512894]
[1750734982709,0.04364,105050.0,105040.0,0.44912894]
[1750734983173,0.44508792,105070.0,105050.0,0.00951909]
[1750734983388,0.44508792,105070.0,105060.0,0.0152]
[1750734983593,0.20496,105070.0,105060.0,0.0152]
[1750734984033,0.20496,105070.0,105050.0,0.0303]
[1750734984034,5.70004792,105070.0,105050.0,0.0303]
[1750734984249,5.05,105060.0,105050.0,0.0152]
[1750734984454,0.44508792,105060.0,105050.0,0.0152]
[1750734985734,5.49508792,105060.0,105040.0,0.01586332]
[1750734985963,5.65636792,105050.0,105040.0,0.00046332]
[1750734986162,0.60636792,105050.0,105040.0,0.00046332]
[1750734986364,0.62090877,105050.0,105040.0,0.00046332]
[1750734987026,0.64953177,105050.0,105040.0,0.00046332]
[1750734990026,0.64953177,105050.0,105040.0,0.00146332]
[1750734990230,0.64953177,105050.0,105040.0,0.00046332]
[1750734990545,0.65253177,105050.0,105040.0,0.00046332]
[1750734991390,0.66763177,105050.0,105040.0,0.00046332]
[1750734993063,6.07273177,105050.0,105040.0,0.00046332]
[1750734993683,6.16823363,105050.0,105040.0,0.00046332]
[1750734994122,6.17775209,105050.0,105040.0,0.00046332]
[1750734995001,6.16823363,105050.0,105040.0,0.00046332]
[1750734995211,6.17775209,105050.0,105040.0,0.00046332]
[1750734995440,6.16823363,105050.0,105040.0,0.00046332]
[1750734999154,5.53166571,105050.0,105040.0,0.00046332]
[1750734999354,0.031623,105050.0,105040.0,0.00046332]
[1750734999558,0.031623,105050.0,105040.0,0.10782417]
[1750734999559,0.20756,105050.0,105040.0,0.10782417]
[1750735000025,0.0466,105050.0,105040.0,0.31726791]
[1750735000165,0.2076,105050.0,105040.0,0.33630727]
[1750735000367,0.0466,105050.0,105040.0,0.33630727]
[1750735000683,0.0466,105050.0,105040.0,0.43180913]
[1750735000684,0.003,105050.0,105040.0,0.43180913]
[1750735000845,0.0436,105050.0,105040.0,0.43180913]
[1750735002439,0.0436,105050.0,105040.0,0.43280913]
[1750735002650,0.0436,105050.0,105040.0,0.43480913]
[1750735003173,0.16088,105060.0,105050.0,0.04111927]
[1750735003418,0.16088,105060.0,105050.0,0.05063836]
[1750735003419,0.20448,105060.0,105050.0,0.05063836]
[1750735003685,0.20448,105060.0,105050.0,0.0316]
[1750735003949,0.44508792,105070.0,105050.0,0.0316]
[1750735004206,0.20448,105060.0,105050.0,0.0316]
[1750735005721,0.20448,105060.0,105050.0,0.0326]
[1750735006657,0.0436,105060.0,105050.0,0.2420238]
[1750735006870,0.0436,105060.0,105050.0,0.0326]
[1750735006871,0.20436,105060.0,105050.0,0.0326]
[1750735008062,0.20436,105060.0,105050.0,0.2420238]
[1750735008607,0.20436,105060.0,105050.0,0.25154271]
[1750735008782,0.44508792,105070.0,105050.0,0.26106153]
[1750735008979,0.20428,105060.0,105050.0,0.26106153]
[1750735009344,0.20428,105060.0,105050.0,0.25154271]
[1750735009757,0.20428,105060.0,105050.0,0.26106153]
[1750735010258,0.20428,105060.0,105050.0,0.25154271]
[1750735010559,0.20428,105060.0,105050.0,0.2325048]
[1750735010764,0.20428,105060.0,105050.0,0.0176]
[1750735010983,0.20428,105060.0,105050.0,0.02711927]
[1750735011175,0.20428,105060.0,105050.0,0.0176]
[1750735011605,0.20428,105060.0,105050.0,0.001]
[1750735011966,0.20428,105060.0,105050.0,0.02551927]
[1750735012946,0.20428,105060.0,105050.0,0.03503845]
[1750735013200,0.20428,105060.0,105050.0,0.02551927]
[1750735013409,0.20428,105060.0,105050.0,0.03503845]
[1750735014253,0.64936792,105060.0,105050.0,0.001]
[1750735014850,0.73936792,105060.0,105050.0,0.001]
[1750735015415,0.29428,105060.0,105050.0,0.016]
[1750735016287,0.57930922,105060.0,105050.0,0.016]
[1750735018493,0.57930922,105060.0,105050.0,0.001]
[1750735018699,0.29428,105060.0,105050.0,0.001]
[1750735018852,0.57930922,105060.0,105050.0,0.001]
[1750735021035,0.29352,105060.0,105050.0,0.04161927]
[1750735021249,0.29352,105060.0,105050.0,0.24152398]
[1750735021457,0.29352,105060.0,105050.0,0.25104307]
[1750735021659,0.29352,105060.0,105050.0,0.27008062]
[1750735022703,0.29344,105060.0,105050.0,0.27008062]
[1750735023115,0.1336,105060.0,105050.0,0.27008062]
[1750735024654,0.1336,105060.0,105050.0,0.6506117]
[1750735025241,0.1336,105060.0,105050.0,0.36558248]
[1750735027112,0.1336,105060.0,105050.0,0.36458248]
[1750735027316,0.1336,105060.0,105050.0,0.36658248]
[1750735027522,0.1336,105060.0,105050.0,0.36858248]
[1750735028388,0.41862922,105060.0,105050.0,0.35906393]
[1750735028607,0.41862922,105060.0,105050.0,0.3685823]
[1750735028800,0.41862922,105060.0,105050.0,0.35906312]
[1750735029027,0.41862922,105060.0,105050.0,0.36858176]
[1750735030638,0.41862922,105060.0,105050.0,0.35906312]
[1750735031054,0.41862922,105060.0,105050.0,0.36858176]
[1750735031265,0.1336,105060.0,105050.0,0.36858176]
[1750735031402,0.41862922,105060.0,105050.0,0.36858176]
[1750735031837,0.41862922,105060.0,105050.0,0.35906312]
[1750735032049,0.41862922,105060.0,105050.0,0.36858176]
[1750735032452,0.41862922,105060.0,105050.0,0.35906312]
[1750735033017,0.41862922,105060.0,105050.0,0.34954439]
[1750735033438,0.1336,105060.0,105050.0,0.35906321]
[1750735033648,0.41862922,105060.0,105050.0,0.35906321]
[1750735033862,0.41862922,105060.0,105050.0,0.36858185]
[1750735034263,0.1336,105060.0,105050.0,0.36858185]
[1750735034477,0.41862922,105060.0,105050.0,0.36858185]
[1750735035306,0.41862922,105060.0,105050.0,0.35906285]
[1750735036107,0.41862922,105060.0,105050.0,0.34954412]
[1750735036671,0.41862922,105060.0,105050.0,0.35906285]
[1750735038057,0.41862922,105060.0,105050.0,0.34954412]
[1750735038308,0.41862922,105060.0,105050.0,0.35906285]
[1750735038721,0.41862922,105060.0,105050.0,0.34002566]
[1750735038927,0.41862922,105060.0,105050.0,0.32472566]
[1750735039882,0.41862922,105060.0,105050.0,0.33424457]
[1750735040323,0.41862922,105060.0,105050.0,0.34376321]
[1750735040623,0.41862922,105060.0,105050.0,0.33424457]
[1750735040867,0.41862922,105060.0,105050.0,0.3437633]
[1750735041990,0.41862922,105060.0,105050.0,0.33424457]
[1750735042288,0.41862922,105060.0,105050.0,0.35328149]
[1750735042758,0.41862922,105060.0,105050.0,0.34376285]
[1750735043620,0.41862922,105060.0,105050.0,0.33424412]
[1750735043858,0.41862922,105060.0,105050.0,0.34376285]
[1750735044080,0.41862922,105060.0,105050.0,0.0198]
[1750735044299,0.41862922,105060.0,105050.0,0.01351927]
[1750735044520,0.41862922,105060.0,105050.0,0.004]
[1750735045401,0.41862922,105060.0,105050.0,0.02303827]
[1750735045951,0.41862922,105060.0,105050.0,0.01351918]
[1750735046170,0.41862922,105060.0,105050.0,0.01351927]
[1750735046814,0.41862922,105060.0,105050.0,0.004]
[1750735047028,0.41862922,105060.0,105050.0,0.01351927]
[1750735047282,0.41862922,105060.0,105050.0,0.02303845]
[1750735047748,0.41862922,105060.0,105050.0,0.21342398]
[1750735047957,0.41862922,105060.0,105050.0,0.22294298]
[1750735048174,0.41862922,105060.0,105050.0,0.23246189]
[1750735048392,0.41862922,105060.0,105050.0,0.25838053]
[1750735049443,0.41862922,105060.0,105050.0,0.24886189]
[1750735049693,0.41862922,105060.0,105050.0,0.25838071]
[1750735050031,0.41862922,105060.0,105050.0,0.25838017]
[1750735050434,0.41862922,105060.0,105050.0,0.24886144]
[1750735050614,0.41862922,105060.0,105050.0,0.23934262]
[1750735050818,0.41862922,105060.0,105050.0,0.24886135]
[1750735051406,0.41862922,105060.0,105050.0,0.23934262]
[1750735051615,0.41862922,105060.0,105050.0,0.24886144]
[1750735051837,0.41862922,105060.0,105050.0,0.25838017]
[1750735052873,0.41862922,105060.0,105050.0,0.25837963]
[1750735053724,0.41862922,105060.0,105050.0,0.27427963]
[1750735054776,0.1336,105060.0,105050.0,0.27427963]
[1750735055221,0.41862922,105060.0,105050.0,0.26476099]
[1750735055458,0.41862922,105060.0,105050.0,0.25524226]
[1750735055566,0.41862922,105060.0,105050.0,0.26476099]
[1750735056078,0.41862922,105060.0,105050.0,0.25837963]
[1750735058760,0.41862922,105060.0,105050.0,0.27457963]
[1750735062597,0.1336,105060.0,105050.0,0.37008149]
[1750735064318,0.1336,105060.0,105050.0,0.52880149]
[1750735067345,0.1336,105060.0,105050.0,0.81383071]
[1750735068289,0.08443209,105060.0,105050.0,1.43885993]
[1750735068519,0.19429057,105100.0,105090.0,0.25065892]
[1750735068725,0.15193057,105100.0,105090.0,0.78991]
[1750735069835,0.15193057,105100.0,105090.0,1.41493922]
[1750735069836,0.15206927,105100.0,105090.0,1.41493922]
[1750735070047,0.0002387,105100.0,105090.0,1.41493922]
[1750735070259,0.0002387,105100.0,105090.0,1.14511272]
[1750735070698,0.0002387,105100.0,105090.0,1.17370872]
[1750735071319,0.0002387,105100.0,105090.0,1.45873794]
[1750735071542,0.0002387,105100.0,105090.0,1.46373794]
[1750735071753,0.0002387,105100.0,105090.0,1.45873794]
[1750735071961,0.0002387,105100.0,105090.0,1.50873794]
[1750735072170,0.0002387,105100.0,105090.0,1.51573794]
[1750735072597,0.0002387,105100.0,105090.0,1.52173794]
[1750735073920,0.0002387,105100.0,105090.0,1.57173794]
[1750735074361,0.0002387,105100.0,105090.0,1.52173794]
[1750735074577,0.0002387,105100.0,105090.0,1.57173794]
[1750735075404,0.0002387,105100.0,105090.0,1.52173794]
[1750735075613,0.0002387,105100.0,105090.0,1.57173794]
[1750735077760,0.0002387,105100.0,105090.0,1.61409794]
[1750735078596,0.0002387,105100.0,105090.0,1.41301794]
[1750735078803,0.0002387,105100.0,105090.0,1.61413794]
[1750735079046,0.0002387,105100.0,105090.0,1.92487879]
[1750735079923,0.0002387,105100.0,105090.0,1.72375879]
[1750735080177,0.0002387,105100.0,105090.0,1.92483879]
[1750735080391,0.0002387,105100.0,105090.0,1.91783879]
[1750735080628,0.0002387,105100.0,105090.0,1.92483879]
[1750735082003,0.0002387,105100.0,105090.0,1.91883879]
[1750735082809,0.0002387,105100.0,105090.0,1.71775879]
[1750735083015,0.0002387,105100.0,105090.0,1.91879879]
[1750735083871,0.0002387,105100.0,105090.0,1.92679879]
[1750735084128,0.0002387,105100.0,105090.0,1.92675879]
[1750735085589,0.0002387,105100.0,105090.0,1.72575879]
[1750735085820,0.0002387,105100.0,105090.0,1.92651879]
[1750735086228,0.0002387,105100.0,105090.0,1.72575879]
[1750735086438,0.0002387,105100.0,105090.0,1.92651879]
[1750735090569,0.0002387,105100.0,105090.0,1.15570035]
[1750735090772,0.0002387,105100.0,105090.0,1.92647879]
[1750735099207,0.0002387,105100.0,105090.0,2.21078801]
[1750735099420,0.0002387,105100.0,105090.0,2.12647879]
[1750735099632,0.0002387,105100.0,105090.0,2.2593826]
[1750735100272,0.0002387,105100.0,105090.0,2.0586626]
[1750735100487,0.0002387,105100.0,105090.0,2.30447129]
[1750735100698,0.0002387,105100.0,105090.0,1.82084748]
[1750735100914,0.0002387,105100.0,105090.0,1.39087741]
[1750735101126,0.0002387,105100.0,105090.0,1.62519741]
[1750735101337,0.0002387,105100.0,105090.0,1.92522663]
[1750735101556,0.0002387,105100.0,105090.0,1.91922663]
[1750735101767,0.0002387,105100.0,105090.0,1.92562663]
[1750735101985,4.355e-05,105100.0,105090.0,1.90290663]
[1750735102197,4.355e-05,105100.0,105090.0,1.90690663]
[1750735102620,4.355e-05,105100.0,105090.0,1.91090663]
[1750735103035,4.355e-05,105100.0,105090.0,1.95302663]
[1750735103747,4.355e-05,105100.0,105090.0,2.00302663]
[1750735104154,4.355e-05,105100.0,105090.0,2.01756748]
[1750735104336,4.355e-05,105100.0,105090.0,2.00556748]
[1750735104721,4.355e-05,105100.0,105090.0,2.01756748]
[1750735104956,4.355e-05,105100.0,105090.0,2.01356748]
[1750735105152,4.355e-05,105100.0,105090.0,2.00556748]
[1750735105365,4.355e-05,105100.0,105090.0,2.01156748]
[1750735105583,4.355e-05,105100.0,105090.0,2.02056748]
[1750735108255,0.0001,105110.0,105100.0,0.26883809]
[1750735108395,0.00014625,105110.0,105100.0,1.6250165]
[1750735108585,0.00014625,105110.0,105100.0,1.63618728]
[1750735108993,0.00014625,105110.0,105100.0,2.02618728]
[1750735109415,0.00014625,105110.0,105100.0,2.03018728]
[1750735110417,0.0001,105130.0,105120.0,0.25159646]
[1750735110644,0.00014625,105130.0,105120.0,1.37199676]
[1750735110842,0.00014625,105130.0,105120.0,1.18055676]
[1750735111054,0.03224625,105130.0,105120.0,1.05412754]
[1750735111184,0.03224625,105130.0,105120.0,1.07082754]
[1750735111391,0.02224625,105130.0,105120.0,1.07082754]
[1750735111948,0.0166,105130.0,105120.0,1.07082754]
[1750735112142,0.0166,105130.0,105120.0,1.07282754]
[1750735112721,0.0161,105140.0,105130.0,0.55877565]
[1750735112932,0.0161,105140.0,105130.0,1.09790673]
[1750735113295,0.0161,105140.0,105130.0,0.93930673]
[1750735113489,0.0161,105140.0,105130.0,1.09790673]
[1750735113691,0.0161,105140.0,105130.0,0.93930673]
[1750735113904,0.0161,105140.0,105130.0,1.10290673]
[1750735114533,0.0161,105140.0,105130.0,0.94430673]
[1750735114742,0.0161,105140.0,105130.0,1.10286673]
[1750735116011,0.0161,105140.0,105130.0,0.94430673]
[1750735116185,0.0327,105140.0,105130.0,1.10286673]
[1750735117634,0.0001,105140.0,105130.0,1.11906673]
[1750735117807,0.0001,105140.0,105130.0,1.19513066]
[1750735117993,0.0001,105140.0,105130.0,1.21123066]
[1750735118817,0.0001,105140.0,105130.0,1.19513066]
[1750735120149,0.0001,105140.0,105130.0,1.19713066]
[1750735120758,0.0001,105140.0,105130.0,1.19213066]
[1750735120961,0.0001,105140.0,105130.0,1.19813066]
[1750735121176,0.0001,105140.0,105130.0,1.22671766]
[1750735123477,0.0001,105140.0,105130.0,1.52291766]
[1750735126525,0.0001,105140.0,105130.0,1.34815766]
[1750735126725,0.0165,105140.0,105130.0,1.50671766]
[1750735130150,0.0165,105140.0,105130.0,1.34815766]
[1750735130360,0.0165,105140.0,105130.0,1.50671766]
[1750735130566,0.0165,105140.0,105130.0,1.34815766]
[1750735130760,0.0165,105140.0,105130.0,1.50671766]
[1750735131376,0.0165,105140.0,105130.0,1.06312844]
[1750735131584,0.0326,105140.0,105130.0,1.22168844]
[1750735131787,0.0326,105140.0,105130.0,1.14562451]
[1750735132222,0.0326,105140.0,105130.0,1.43065373]
[1750735132771,0.0326,105140.0,105130.0,1.14562451]
[1750735133309,0.0326,105140.0,105130.0,1.43065373]
[1750735133657,0.0165,105140.0,105130.0,1.43065373]
[1750735134282,0.0001,105140.0,105130.0,1.52241766]
[1750735141623,0.0001,105140.0,105130.0,1.23738844]
[1750735141835,0.0001,105140.0,105130.0,1.52241766]
[1750735142458,1.742e-05,105140.0,105130.0,1.46185373]
[1750735142662,1.742e-05,105140.0,105130.0,1.55698732]
[1750735145620,1.742e-05,105140.0,105130.0,2.01767739]
[1750735145849,0.0001,105150.0,105140.0,0.52038406]
[1750735146056,0.0001,105150.0,105140.0,0.86945424]
[1750735146273,0.0001,105150.0,105140.0,0.58442502]
[1750735146524,0.0001,105150.0,105140.0,0.86945424]
[1750735146950,0.0001,105150.0,105140.0,1.16565424]
[1750735147577,0.0001,105150.0,105140.0,1.00713424]
[1750735147781,0.0001,105150.0,105140.0,1.16565424]
[1750735148178,0.0001,105150.0,105140.0,1.16765424]
[1750735148604,0.0001,105150.0,105140.0,0.71350502]
[1750735148818,0.0001,105150.0,105140.0,1.17331424]
[1750735149704,0.0001,105150.0,105140.0,1.18991424]
[1750735149898,0.0001,105150.0,105140.0,1.20561424]
[1750735150600,0.0001,105150.0,105140.0,1.2345417]
[1750735150826,0.0001,105150.0,105140.0,1.2188417]
[1750735152442,0.03202132,105150.0,105140.0,0.66398416]
[1750735152702,0.03202132,105150.0,105140.0,0.73998312]
[1750735152913,0.03202132,105150.0,105140.0,0.44378312]
[1750735153120,0.03202132,105150.0,105140.0,0.60226312]
[1750735153332,0.03202132,105150.0,105140.0,0.94226312]
[1750735154185,0.03202132,105150.0,105140.0,0.78378312]
[1750735154390,0.03202132,105150.0,105140.0,0.94226312]
[1750735154855,2.132e-05,105150.0,105140.0,1.30295319]
[1750735155063,2.132e-05,105150.0,105140.0,1.08441234]
[1750735155271,0.03142132,105150.0,105140.0,1.22729234]
[1750735156063,0.03142132,105150.0,105140.0,0.78378312]
[1750735156274,0.03142132,105150.0,105140.0,0.94226312]
[1750735157096,0.31645054,105150.0,105140.0,0.35118416]
[1750735157311,0.31645054,105150.0,105140.0,0.48073679]
[1750735157523,0.31645054,105150.0,105140.0,0.22675484]
[1750735157743,0.31645054,105150.0,105140.0,0.20773341]
[1750735157744,0.35853054,105150.0,105140.0,0.20773341]
[1750735157968,0.35853054,105150.0,105140.0,0.23626596]
[1750735158158,0.35853054,105150.0,105140.0,0.24577654]
[1750735158363,0.35853054,105150.0,105140.0,0.23977654]
[1750735158579,0.35853054,105150.0,105140.0,0.23977591]
[1750735159820,0.35853054,105150.0,105140.0,0.24477591]
[1750735160054,0.35853054,105150.0,105140.0,0.23526542]
[1750735160257,0.35853054,105150.0,105140.0,0.24477591]
[1750735160671,0.35853054,105150.0,105140.0,0.24277591]
[1750735161083,0.35853054,105150.0,105140.0,0.23777591]
[1750735161291,0.07350132,105150.0,105140.0,0.23777591]
[1750735161522,0.35853054,105150.0,105140.0,0.24077591]
[1750735162049,0.35853054,105150.0,105140.0,0.23126542]
[1750735162263,0.35853054,105150.0,105140.0,0.22175484]
[1750735162471,0.35853054,105150.0,105140.0,0.23126542]
[1750735162687,0.07350132,105150.0,105140.0,0.24077591]
[1750735162896,0.35853054,105150.0,105140.0,0.24077591]
[1750735163446,0.35853054,105150.0,105140.0,0.23126542]
[1750735163644,0.35853054,105150.0,105140.0,0.24077591]
[1750735164049,0.35853054,105150.0,105140.0,0.23126542]
[1750735164248,0.35853054,105150.0,105140.0,0.24077591]
[1750735164459,0.35853054,105150.0,105140.0,0.23126542]
[1750735164725,0.35853054,105150.0,105140.0,0.24077591]
[1750735164946,0.35853054,105150.0,105140.0,0.22175484]
[1750735165147,0.35853054,105150.0,105140.0,0.23126533]
[1750735165571,0.35853054,105150.0,105140.0,0.2217552]
[1750735166189,0.07350132,105150.0,105140.0,0.23126569]
[1750735166393,0.35853054,105150.0,105140.0,0.23126569]
[1750735167310,0.07350132,105150.0,105140.0,0.23126569]
[1750735168401,0.35853054,105150.0,105140.0,0.23126569]
[1750735169131,0.35853054,105150.0,105140.0,0.32676755]
[1750735169773,0.35853054,105150.0,105140.0,0.23126569]
[1750735171497,0.35853054,105150.0,105140.0,1.05855762]
[1750735171498,2.132e-05,105150.0,105140.0,1.05855762]
[1750735171693,2.132e-05,105150.0,105140.0,1.04285762]
[1750735172102,2.132e-05,105150.0,105140.0,1.14744358]
[1750735172472,2.132e-05,105150.0,105140.0,1.06844462]
[1750735172877,2.132e-05,105150.0,105140.0,1.07344462]
[1750735174449,2.132e-05,105150.0,105140.0,1.08904462]
[1750735175004,2.132e-05,105150.0,105140.0,1.16504358]
[1750735175622,2.132e-05,105150.0,105140.0,1.19349059]